Cogmind - Beta 13 @@@ ROGUE MODE // 2024.05.06 @ 11:31:59 Player: Barbarossa Result: Self-destructed Performance ------------- Evolutions (2) 1000 Regions Visited (3) 600 Robots Destroyed (29) 145 Value Destroyed (958) 958 Prototype IDs (2) 40 Alien Tech Used (0) 0 Bonus (196) 196 TOTAL SCORE: 2939 Bonus ------- Pacifist 200 Friendly Fire -4 Cogmind --------- Core Integrity 309/550 Matter 282/300 Energy 100/100 System Corruption 5% Temperature Cool (0) Movement Rolling (100) Location -8/Materials Parts ------- > --- POWER (1) -------- (None) > --- PROPULSION (4) --- Light Treads Compact Wheel > --- UTILITY (4) ------ (None) > --- WEAPON (2) ------- Advanced Beam Cannon Light Assault Rifle > --- INVENTORY (5) ---- Small Storage Unit Sensor Array Spread Laser Spread Laser Field Laser Peak State ------------ > --- POWER ------------ Light Nuclear Core > --- PROPULSION ------- Wheel Wheel Improved VTOL Module > --- UTILITY ---------- Improved Heat Sink > --- WEAPON ----------- Spread Laser Advanced Beam Cannon > --- INVENTORY -------- Small Storage Unit Sensor Array Spread Laser Spread Laser Field Laser [Rating: 17] Favorites ----------- Power Ion Engine Engine Ion Engine Power Core Light Nuclear Core Propulsion Flight Unit Treads Light Treads Leg Aluminum Leg Wheel Wheel Flight Unit Flight Unit Utility Sensor Array Device Sensor Array Storage Small Storage Unit Weapon Spread Laser Energy Gun Spread Laser Energy Cannon Advanced Beam Cannon Ballistic Gun Light Assault Rifle Build | -11 -10 -9 -8 ------- Run | Yrd Mat Mat Mat Slots Evolved 4 | . . 2 2 Power . | . . . . Propulsion 2 | . . 2 . Utility 2 | . . . 2 Weapon . | . . . . Parts Attached 32 | . 1 17 14 Power 4 | . . 1 3 Engine 3 | . . 1 2 Core 1 | . . . 1 Reactor . | . . . . Propulsion 15 | . . 8 7 Treads 2 | . . . 2 Leg . | . . . . Wheel 4 | . . . 4 Hover . | . . . . Flight 9 | . . 8 1 Utility 7 | . 1 4 2 Device 6 | . . 4 2 Storage 1 | . 1 . . Processor . | . . . . Hackware . | . . . . Protection . | . . . . Artifact . | . . . . Weapon 6 | . . 4 2 Energy Gun 4 | . . 4 . Energy Cannon 1 | . . . 1 Ballistic Gun 1 | . . . 1 Ballistic Cannon . | . . . . Launcher . | . . . . Special Weapon . | . . . . Impact Weapon . | . . . . Slashing Weapon . | . . . . Piercing Weapon . | . . . . Special Melee Weapon . | . . . . Unidentified Prototypes 2 | . . . 2 Parts Lost 17 | . . 1 16 Power 2 | . . . 2 Propulsion 10 | . . 1 9 Utility 3 | . . . 3 Weapon 2 | . . . 2 Highest Loss Streak 7 | . . 1 7 To Critical Strikes . | . . . . Average Slot Usage (%) 74 | . 85 82 61 Engine 8 | . 14 8 6 Treads 1 | . . . 3 Leg 6 | . 28 3 . Wheel 2 | . . . 5 Flight 21 | . . 34 15 Device 10 | . . 10 14 Storage 3 | . 14 1 . Energy Gun 18 | . 28 22 10 Energy Cannon 1 | . . . 2 Naked Turns . | . . . . Heaviest Build 29 | 14 29 29 15 Greatest Support 36 | 20 20 20 36 Greatest Overweight (x) 1 | . 1 1 1 Average Overweight (x) . | . . . . Largest Inventory Capacity 15 | 8 15 15 5 Average Capacity 6 | 8 9 6 5 Most Carried 10 | 6 7 10 5 Average Carried 4 | 6 6 4 4 Final Capacity 15 | 8 15 5 5 Final Carried 7 | 6 7 4 5 Class Distribution -------------------- 56% | Mutant 43% | Sprinter Dominant Class ---------------- Mutant | -10/Materials Sprinter | -9/Materials Mutant | -8/Materials Resources | -11 -10 -9 -8 ----------- Run | Yrd Mat Mat Mat Matter Collected 558 | 200 . 248 110 Remotely . | . . . . Salvage Created 916 | . . 250 666 Parts 52 | . . 13 39 Haulers Intercepted 1 | . . . 1 Recyclers Shooed 1 | . . . 1 Parts Field Recycled . | . . . . Retrieved Matter . | . . . . Parts Self-Destructed . | . . . . Prevented . | . . . . Kills | -11 -10 -9 -8 ------- Run | Yrd Mat Mat Mat Combat Hostiles Destroyed 25 | . . 7 18 Guns 19 | . . 7 12 Cannons 6 | . . . 6 Classes Destroyed 9 | . . 3 6 Hauler 1 | . . . 1 Recycler 1 | . . . 1 Mechanic 1 | . . . 1 Watcher 1 | . . 1 . Swarmer 5 | . . . 5 Grunt 13 | . . 6 7 Brawler 2 | . . 1 1 Duelist 1 | . . . 1 Sentry 4 | . . . 4 Best Kill Streak 9 | . . 2 9 Combat Bots Only 7 | . . 2 7 Max Kills in Single Turn 2 | . . 1 2 Gunslinging . | . . . . Exploded . | . . . . Melee . | . . . . Uniques/NPCs Destroyed . | . . . . Combat | -11 -10 -9 -8 -------- Run | Yrd Mat Mat Mat Hostile Shots Fired 162 | . . 22 140 Missed 50 | . . 8 42 Damage Taken 1442 | . . 193 1249 Core 274 | . . 33 241 Absorbed by Shields . | . . . . Regen/Repaired (Parts) 82 | . . 82 . Core Remaining (%) 97 | 100 100 91 . Volleys Fired 87 | . 1 18 68 Largest 2 | . 2 2 2 Hottest 133 | . 100 130 133 Shots Fired 139 | . 2 36 101 Gun 117 | . 2 36 79 Cannon 22 | . . . 22 Launcher . | . . . . Special . | . . . . Kinetic 3 | . . . 3 Thermal 136 | . 2 36 98 Explosive . | . . . . Electromagnetic . | . . . . Robot Hit Streak 14 | . 1 6 14 Robot Miss Streak 11 | . 1 5 11 Penetration Max . | . . . . Secondary Targets 3 | . . 1 2 Max Gunslinging Chain 1 | . . 1 1 Shots Hit Robots 116 | . 1 30 85 Core Hits 156 | . . 44 112 Critical Kills . | . . . . Critical Parts Destroyed . | . . . . Critical Strikes . | . . . . Melee Attacks . | . . . . Impact . | . . . . Slashing . | . . . . Piercing . | . . . . Sneak Attacks . | . . . . Combat Hostiles . | . . . . Follow-up Attacks . | . . . . Damage Inflicted 1782 | . 12 377 1393 Guns 1477 | . 12 377 1088 Cannons 305 | . . . 305 Explosions . | . . . . Melee . | . . . . Ramming . | . . . . Kinetic 23 | . . . 23 Thermal 1759 | . 12 377 1370 Explosive . | . . . . Electromagnetic . | . . . . Impact . | . . . . Slashing . | . . . . Piercing . | . . . . Highest Corruption 5 | . . . 5 Average Corruption 5 | . . . 5 Corruption Purged . | . . . . Corruption Blocked . | . . . . Effects 2 | . . . 2 Message Errors 1 | . . . 1 Weapon Failures 1 | . . . 1 Overload Shots . | . . . . Overflow Damage . | . . . . Projectiles . | . . . . Explosions . | . . . . Melee . | . . . . Knockbacks . | . . . . Impact . | . . . . Kinetic . | . . . . Secondary . | . . . . Self-Inflicted Damage . | . . . . Shots . | . . . . Rammed . | . . . . Targets Rammed . | . . . . Kicked . | . . . . Crushed . | . . . . Highest Temperature 583 | . 39 583 424 Average Temperature 147 | . 20 188 114 Received Heat Transfer 549 | . . 117 432 Effects 11 | . . 10 1 Shutdowns 2 | . . 2 . Matter Decay 2 | . . 2 . Short Circuit 3 | . . 3 . Damage (minor) 1 | . . 1 . Damage (major) 3 | . . 2 1 Siege Activations . | . . . . Robots Corrupted . | . . . . Combat Hostiles . | . . . . Parts Fried . | . . . . Impact Corruptions . | . . . . Robots Melted . | . . . . Combat Hostiles . | . . . . Parts Melted 1 | . . . 1 Heat Transferred 2397 | . 37 470 1890 Parts Sabotaged . | . . . . Parts Stolen . | . . . . Parts Stripped . | . . . . Power Chain Reactions . | . . . . Alert | -11 -10 -9 -8 ------- Run | Yrd Mat Mat Mat Peak Influence 394 | . 16 253 394 Initial 6 | . . 6 2 Average 114 | . 6 97 179 Maximum Alert Level 1 | . . 1 1 Low Security (%) 77 | 100 100 79 65 Level 1 22 | . . 20 34 Level 2 . | . . . . Level 3 . | . . . . Level 4 . | . . . . Level 5 . | . . . . High Security . | . . . . Max Security . | . . . . Squads Dispatched 6 | . . 2 4 Investigation 2 | . . 2 . Extermination . | . . . . Reinforcement 2 | . . . 2 Assault . | . . . . Garrison 2 | . . . 2 Intercept . | . . . . Searches Triggered . | . . . . Construction Impeded . | . . . . Haulers Reinforced . | . . . . Active Scanning Responses . | . . . . Cargo Convoy Interrupts . | . . . . Stealth | -11 -10 -9 -8 --------- Run | Yrd Mat Mat Mat Distress Signals 3 | . . . 3 Communications Jammed . | . . . . Distress Signals . | . . . . Times Spotted 53 | . 2 14 37 Peak Tracking Total 9 | . 2 6 9 Tactical Retreats 3 | . . 2 1 Traps | -11 -10 -9 -8 ------- Run | Yrd Mat Mat Mat Traps Triggered . | . . . . Indirectly . | . . . . Trap Hack Attempts . | . . . . Triggered . | . . . . Disarmed . | . . . . Reprogrammed . | . . . . Reused . | . . . . Traps Extracted . | . . . . Installed . | . . . . Triggered . | . . . . Machines | -11 -10 -9 -8 ---------- Run | Yrd Mat Mat Mat Machines Disabled 1 | . . . 1 Max in Single Turn 1 | . . . 1 Machines Repaired . | . . . . Machines Dismantled . | . . . . Machines Sabotaged . | . . . . Overloaded Fab Kills . | . . . . Hacking | -11 -10 -9 -8 --------- Run | Yrd Mat Mat Mat Machines Accessed 8 | . 3 5 . Terminals 7 | . 3 4 . Fabricators . | . . . . Repair Stations 1 | . . 1 . Recycling Units . | . . . . Scanalyzers . | . . . . Garrison Access . | . . . . Total Hacks 28 | . 6 22 . Successful 18 | . 3 15 . Failed 10 | . 3 7 . Catastrophic 1 | . 1 . . Database Lockouts . | . . . . Manual 13 | . 4 9 . Terminals 19 | . 6 13 . Fabricators . | . . . . Repair Stations 9 | . . 9 . Recycling Units . | . . . . Scanalyzers . | . . . . Garrison Access . | . . . . Terminal Hacks 4 | . 1 3 . Unreport Threat 2 | . . 2 . Locate Traps 2 | . 1 1 . Fabricator Hacks . | . . . . Repair Station Hacks 8 | . . 8 . Scan Component 4 | . . 4 . Repair 4 | . . 4 . Recycling Unit Hacks . | . . . . Scanalyzer . | . . . . Garrison Access Hacks . | . . . . Unauthorized Hacks 6 | . 2 4 . Terminals 6 | . 2 4 . Assimilate 1 | . . 1 . Botnet 5 | . 2 3 . Fabricators . | . . . . Repair Stations . | . . . . Recycling Units . | . . . . Scanalyzers . | . . . . Garrison Access . | . . . . Data Cores Recovered . | . . . . Used . | . . . . Hacking Detections 7 | . 3 4 . Full Trace Events 3 | . 1 2 . Feedback Events . | . . . . Feedback Blocked . | . . . . Robot Schematics Acquired . | . . . . Robots Built . | . . . . Authchips . | . . . . Time . | . . . . Total Robot Build Rating . | . . . . Part Schematics Acquired . | . . . . Parts Built . | . . . . Authchips . | . . . . Time . | . . . . Total Part Build Rating . | . . . . Parts Repaired 4 | . . 4 . Time 116 | . . 116 . Parts Recycled . | . . . . Recycled Matter . | . . . . Retrieved Matter . | . . . . Retrieved Components . | . . . . Parts Scanalyzed . | . . . . Part Schematics Acquired . | . . . . Parts Damaged . | . . . . Bothacking | -11 -10 -9 -8 ------------ Run | Yrd Mat Mat Mat Used RIF Installer . | . . . . Robots Hacked . | . . . . Non-combat . | . . . . Combat . | . . . . Robot Hacks Applied . | . . . . Relay Couplers Released . | . . . . Fabnet Peak Effective % . | . . . . Robots Rewired . | . . . . Allies Hacked . | . . . . Hacks Repelled . | . . . . Allies | -11 -10 -9 -8 -------- Run | Yrd Mat Mat Mat Total Allies 1 | . . 1 . Largest Group 1 | . . 1 . Highest-Rated Group 10 | . . 10 . Highest-Rated Ally 10 | . . 10 . Total Orders . | . . . . Ally Attacks . | . . . . Total Damage . | . . . . Kills . | . . . . Allies Corrupted 1 | . . 1 . Allies Melted . | . . . . Intel | -11 -10 -9 -8 ------- Run | Yrd Mat Mat Mat Robot Analysis Total . | . . . . Derelict Logs Recovered . | . . . . Drone Launches . | . . . . Drone Recoveries . | . . . . Exploration | -11 -10 -9 -8 ------------- Run | Yrd Mat Mat Mat Turns Passed 992 | 3 161 447 381 Spaces Moved 940 | 3 119 521 297 Core . | . . . . Treads 3 | . . . 3 Legs 159 | 3 119 37 . Wheels 38 | . . . 38 Hover . | . . . . Flight 740 | . . 484 256 Fastest Speed 29 | 120 120 29 29 Average Speed 53 | 120 131 42 40 Slowest Speed 190 | 120 190 190 160 Overloaded Moves . | . . . . Propulsion Burnouts . | . . . . Robots Hopped 6 | . . 1 5 Cave-ins Triggered . | . . . . Exploration Rate (%) 25 | 3 30 47 21 Regions Visited 3 Branch Regions . Pre-discovered Areas . | . . . . Known Exits Taken . | . . . . Unknown Exits Taken 3 | 1 1 1 . Scrap Searched . | . . . . Spaces Dug . | . . . . Terrain Destroyed . | . . . . Melee . | . . . . Projectile . | . . . . AOE . | . . . . Terrain Rammed . | . . . . Walls Destroyed . | . . . . Machines Disabled . | . . . . Actions | -11 -10 -9 -8 --------- Run | Yrd Mat Mat Mat Total 1284 | 2 122 714 446 Wait 198 | . . 133 65 Move 925 | 2 118 518 287 Hop 6 | . . 1 5 Pick Up 16 | . 1 13 2 Fast Attach 16 | . 1 3 12 Attach 13 | . . 11 2 Detach 2 | . . . 2 Swap 4 | . . 3 1 Drop 17 | . 1 14 2 Fire 87 | . 1 18 68 Melee . | . . . . Ram . | . . . . Kick . | . . . . Crush . | . . . . Escape Stasis . | . . . . Rewire . | . . . . Trap . | . . . . Miscellaneous . | . . . . Route ------- -11/Scrapyard -10/Materials -9/Materials -8/Materials History --------- Turn | Location | Event 1 | -11/Scrapyard | Discovered new exit (range 3) 4 | -11/Scrapyard | Entered Materials 115 | -10/Materials | Discovered new exit (range 10) 165 | -10/Materials | Entered another Materials area 165 | -9/Materials | Evolved 2 slots: Propulsion x2 423 | -9/Materials | Repaired Flight Unit 455 | -9/Materials | Repaired Flight Unit 506 | -9/Materials | Repaired Ion Engine 545 | -9/Materials | Repaired Imp. Heat Sink 594 | -9/Materials | Discovered new exit (range 10) 612 | -9/Materials | Entered another Materials area 612 | -8/Materials | Evolved 2 slots: Utility x2 732 | -8/Materials | Lost 3 parts (3n) 856 | -8/Materials | Garrison activated, responded to threat 927 | -8/Materials | Lost 3 parts (2n1w) 993 | -8/Materials | Self-destructed Last Messages --------------- 00973_ R-06 Scavenger collects Flight Unit. 00975_ K-01 Serf collects debris. 00975_ S-10 Pest destroyed. 00975_ K-01 Serf collects debris. 00978_ S-10 Pest destroyed. 00978_ K-01 Serf collects debris. 00979_ K-01 Serf cleans the Terminal. 00979_ R-06 Scavenger suffers critical hit (Burn). 00981_ K-01 Serf collects debris. 00982_ K-01 Serf cleans the Terminal. 00984_ Critical hit (Burn: +37). 00985_ K-01 Serf collects debris. 00985_ K-01 Serf cleans the Terminal. 00986_ K-01 Serf collects debris. 00989_ K-01 Serf cleans the Terminal. 00989_ K-01 Serf collects debris. 00990_ Wheel destroyed. 00991_ T-07 Excavator is excavating. 00993_ Imp. Ion Engine destroyed. Map ----- +----------------------------------------------------+ | #########?????????? ??????????????????????? | | # #??????????# #????????#?????????????? | | + #??????????# #??????? ????????????? | | # #??????????# #??????? ""????????????? | | #########?????????## ##?????! G" ??????????? | | ##??????########### #????? """???????????? | | ## ????# #????? ????????????? | | ## """??# % #???? ?????????????? | | ## """ # #???? ??????????????? | | ## """ + ####### % #???#+###########+????? | | ## # #?????### % #### =%%[ ????? | | ## ??# #???????# %% %*! % *=[ ???? | | ####???## ##????### % %!*% [ ??????? | | ####### #????#" "" / [ ###/##?????????? | | #????#"Ta "T * #??????????????? | | #????#"" "" ! #??????????????? | | % #????### #??????????????? | | ####### #??????# a#??????????????? | | ##?????#######??????# """ #??????????????? | | #???????????????????# """ #??????????????? | | #???????????????????# """ #??????????????? | | #???????????????????# o #??????????????? | | #???????????????????# a #??????????????? | | #???????????????????# #??????????????? | | #???????????????????# #??????????????? | | #???????????????????+ @ r ???????? | | #???????????????????# ##### ???????? | | #???????????????????# #"T"###??????????????? | | #???????????????????# #"""#????????????????? | | #???????????????????# #####????????????????? | | #???????????????????# #????????????????????? | | #??????????????????? #????????????????????? | | #?????????????????? #????????????????????? | | #?????????????????? t????????????????????? | | #?????????????????? #????????????????????? | | #????????????????? #????????????????????? | | #????????????????? #????????????????????? | | #????????????????? #????????????????????? | | #?????????????????###s #????????????????????? | | #???????????????????? s #????????????????????? | | #???????????????????? s ?????????????????????? | | #?????????????????????????????????????????????? | | #?????????????????????????????????????????????? | | #?????????????????????????????????????????????? | | #?????????????????????????????????????????????? | | #?????????????????????????????????????????????? | | ####?????????????????????????????????????????????? | | ?????????????????????????????????????????????????? | | ?????????????????????????????????????????????????? | | ?????????????????????????????????????????????????? | +----------------------------------------------------+ Best States ------------- Heat Dissipation 55 Energy Generation 14 Energy Capacity 265 Matter Stores 300 Matter Capacity 300 Sight Range 16 Robot Scan Range 14 Terrain Scan Density 10 Evasion (%) 64 Recoil Reduction 1 Item Schematics ----------------- None Robot Schematics ------------------ None Fabricated ------------ Nothing Alien Tech Used ----------------- None Achievements -------------- None Challenges ------------ None Game ------ Seed RelayArcFragment Manual? 0 Play Time 00:18:02 Cumulative 152.1 hours Start 2024.05.06 @ 11:18:55 End 2024.05.06 @ 11:31:59 Sessions 1 Manual Loads 0 Difficulty Rogue Special Mode None Game No. 299 Rogue 299 Adventurer 0 Explorer 0 Win Type - Total 0 Types 0/0/0/0/0/0/0/0/0 Lore% 37 Gallery% 51 Achievement% 37 Wizard Run 0 Options --------- Layout 1 ASCII 0 Keyboard 0 Movement Mouse Keybinds 0 Fullscreen 1 Font 24/Smallcaps Map View 50x40 Zoom Use 0% Tactical HUD 1 Map Filters NONE Filters NONE Steam 1 RUN: f8715a19-6864-45a9-8b65-8315cbfce254